bitfinex/quotes_ETHUSD_20251009
["timestamp","ask_amount","ask_price","bid_price","bid_amount"]
[1760052187070,1e-08,4371.1,4371.0,2.28780599]
[1760052190998,0.11360001,4371.1,4371.0,2.28780599]
[1760052198110,0.11360001,4371.1,4371.0,6.01438887]
[1760052198318,1e-08,4371.1,4371.0,6.48118887]
[1760052200821,1e-08,4371.1,4371.0,7.20780175]
[1760052201822,0.002,4371.6,4371.5,5.55656039]
[1760052202022,0.002,4371.6,4371.5,12.12416039]
[1760052202227,0.002,4371.6,4371.5,14.0340697]
[1760052202394,0.002,4371.6,4371.5,14.1476697]
[1760052203989,0.002,4371.6,4371.5,3.35884075]
[1760052204197,0.002,4371.6,4371.5,2.28754432]
[1760052205024,0.002,4371.6,4371.4,3.26901607]
[1760052205219,0.002,4371.6,4371.5,2.28754432]
[1760052210257,0.002,4371.6,4371.5,2.71914432]
[1760052211763,0.002,4371.6,4371.5,2.28754432]
[1760052214333,0.002,4371.6,4371.5,4.63914432]
[1760052215062,0.002,4371.6,4371.5,5.67237177]
[1760052216362,0.002,4371.6,4371.5,2.71914432]
[1760052221675,0.002,4371.6,4371.5,2.28754432]
[1760052221824,0.002,4371.6,4371.5,2.71914432]
[1760052222643,0.002,4371.6,4371.5,2.74201976]
[1760052226675,0.002,4371.6,4371.5,2.71914432]
[1760052226847,0.002,4371.6,4371.5,10.06746857]
[1760052230677,0.002,4371.6,4371.5,10.44093194]
[1760052232181,0.002,4371.6,4371.5,12.36093194]
[1760052232581,0.002,4371.6,4371.5,16.06032863]
[1760052233600,0.002,4371.6,4371.5,12.21746857]
[1760052233773,0.002,4371.6,4371.5,16.06032863]
[1760052234303,0.002,4371.6,4371.5,5.33386857]
[1760052234474,0.002,4371.6,4371.5,12.22176857]
[1760052234673,0.002,4371.6,4371.5,9.86586857]
[1760052234883,0.002,4371.6,4371.5,0.23]
[1760052235308,0.002,4371.6,4371.5,2.51754432]
[1760052238282,0.002,4371.6,4371.5,2.95984432]
[1760052238694,0.002,4371.6,4371.5,2.51754432]
[1760052240111,0.002,4371.6,4371.5,0.23]
[1760052240417,0.002,4371.6,4371.5,2.51754432]
[1760052242080,0.002,4371.6,4371.5,2.95984432]
[1760052244384,0.002,4371.6,4371.5,2.51754432]
[1760052244713,0.002,4371.6,4371.5,0.23]
[1760052244894,0.1444,4371.6,4371.5,0.23]
[1760052245411,0.1444,4371.6,4371.5,2.51754432]
[1760052246289,0.002,4371.6,4371.5,2.51754432]
[1760052246929,0.002,4371.6,4371.5,0.23]
[1760052247223,0.1585,4371.6,4371.5,0.23]
[1760052248889,0.7921,4371.6,4371.5,0.23]
[1760052249190,3.07959199,4371.6,4371.5,0.23]
[1760052249396,3.6501935,4371.6,4371.5,0.23]
[1760052253627,10.1021935,4371.6,4371.5,0.23]
[1760052256448,12.0221935,4371.6,4371.5,0.23]
[1760052257344,3.28270151,4371.6,4371.5,0.23]
[1760052257556,10.753,4371.6,4371.5,0.23]
[1760052257723,10.9095,4371.6,4371.5,0.23]
[1760052258043,11.5431,4371.6,4371.5,0.23]
[1760052258610,13.83059199,4371.6,4371.5,0.23]
[1760052259743,11.5431,4371.6,4371.5,0.23]
[1760052259935,12.73131,4371.6,4371.5,0.23]
[1760052260447,15.01880199,4371.6,4371.5,0.23]
[1760052260807,3.74381,4371.6,4371.5,0.23]
[1760052261028,11.5431,4371.6,4371.5,0.23]
[1760052261759,9.6231,4371.6,4371.5,0.23]
[1760052262732,11.91059199,4371.6,4371.5,0.23]
[1760052264366,9.6231,4371.6,4371.5,0.23]
[1760052264934,11.91059199,4371.6,4371.5,0.23]
[1760052265133,9.6231,4371.6,4371.5,0.23]
[1760052265335,13.13553596,4371.6,4371.5,0.23]
[1760052267868,10.84804397,4371.6,4371.5,0.23]
[1760052268075,13.13553596,4371.6,4371.5,0.23]
[1760052270468,10.84804397,4371.6,4371.5,0.23]
[1760052270867,0.002,4371.6,4371.5,2.51754432]
[1760052271105,6.454,4371.6,4371.5,2.95484432]
[1760052271596,0.002,4371.6,4371.5,2.95484432]
[1760052271782,6.454,4371.6,4371.5,2.95484432]
[1760052272100,6.454,4371.6,4371.5,3.47909228]
[1760052274985,6.454,4371.6,4371.5,0.75424796]
[1760052275191,6.454,4371.6,4371.5,2.51754432]
[1760052275611,0.002,4371.6,4371.5,2.51754432]
[1760052275764,0.002,4371.6,4371.5,2.95484432]
[1760052279001,0.002,4371.6,4371.5,2.51754432]
[1760052279769,0.002,4371.6,4371.5,2.95484432]
[1760052280006,0.002,4371.6,4371.5,3.81476534]
[1760052281895,0.002,4371.6,4371.5,7.07988473]
[1760052282278,0.002,4371.6,4371.5,3.81476534]
[1760052283620,0.002,4371.6,4371.5,3.83764078]
[1760052284207,0.002,4371.6,4371.5,3.92836534]
[1760052294709,0.002,4371.6,4371.5,3.49106534]
[1760052294911,0.002,4371.6,4371.5,0.23]
[1760052295502,0.1591,4371.6,4371.5,0.23]
[1760052295901,0.1591,4371.6,4371.5,2.51754432]
[1760052296610,0.1591,4371.6,4371.5,0.23]
[1760052297012,0.002,4371.6,4371.5,2.51754432]
[1760052297205,0.1591,4371.6,4371.5,2.51754432]
[1760052299359,0.002,4371.6,4371.5,2.51754432]
[1760052303422,0.002,4371.6,4371.5,3.78076278]
[1760052305368,0.002,4371.6,4371.5,2.97144432]
[1760052305926,0.002,4371.6,4371.5,2.51754432]
[1760052307337,0.002,4371.6,4371.5,2.97144432]
[1760052307633,0.002,4371.6,4371.5,2.51754432]
[1760052311681,0.002,4371.6,4371.5,2.97144432]
[1760052312984,0.002,4371.6,4371.5,3.54074928]
[1760052313278,0.002,4371.6,4371.5,3.65434928]
[1760052314280,0.002,4371.6,4371.5,3.63147384]
[1760052314687,0.002,4371.6,4371.5,3.7230742]
[1760052317076,0.002,4371.6,4371.5,3.2691742]
[1760052317381,0.002,4371.6,4371.5,2.72274468]
[1760052317678,0.002,4371.6,4371.5,3.17664468]
[1760052318767,0.002,4371.6,4371.5,2.72274468]
[1760052318971,0.002,4371.6,4371.5,2.60914468]
[1760052319167,0.002,4371.6,4371.5,2.51754432]
[1760052328305,0.002,4371.6,4371.5,2.98244432]
[1760052330775,0.002,4371.6,4371.5,3.00531976]
[1760052330970,0.002,4371.6,4371.5,3.88164896]
[1760052331192,0.002,4371.6,4371.5,3.85877352]
[1760052331400,0.002,4371.6,4371.5,3.48546465]
[1760052331601,0.002,4371.6,4371.5,10.40036465]
[1760052334789,0.002,4371.6,4371.5,10.77382802]
[1760052337436,0.002,4371.6,4371.5,12.69382802]
[1760052339530,0.002,4371.6,4371.5,16.535501]
[1760052341219,0.002,4371.6,4371.5,16.649101]
[1760052345907,1e-08,4371.9,4371.8,2.28738734]
[1760052346122,1e-08,4371.9,4371.8,14.06138475]
[1760052346508,1e-08,4371.9,4371.8,14.52338475]
[1760052347521,1e-08,4371.9,4371.8,14.61495994]
[1760052347810,1e-08,4371.9,4371.8,5.78695994]
[1760052348026,1e-08,4371.9,4371.8,14.61495994]
[1760052348332,1e-08,4371.9,4371.8,15.08110995]
[1760052348935,1e-08,4371.9,4371.8,6.25310995]
[1760052349120,1e-08,4371.9,4371.8,15.08110995]
[1760052351420,1e-08,4371.9,4371.8,15.08010995]
[1760052351935,1e-08,4371.9,4371.8,6.25310995]
[1760052352145,1e-08,4371.9,4371.8,15.08010995]
[1760052354013,1e-08,4371.9,4371.8,14.70664658]
[1760052354325,1e-08,4371.9,4371.8,11.86149657]
[1760052357042,1e-08,4371.9,4371.8,5.41349657]
[1760052357216,1e-08,4371.9,4371.8,11.39949657]
[1760052357418,1e-08,4371.9,4371.8,11.83439657]
[1760052358950,1e-08,4371.9,4371.8,11.83539657]
[1760052359471,0.00200001,4371.9,4371.8,11.29646253]
[1760052360429,0.00200001,4371.9,4371.8,4.41356253]
[1760052360627,0.00200001,4371.9,4371.8,10.86156253]
[1760052360858,0.00200001,4371.9,4371.8,11.29646253]
[1760052362588,0.00200001,4371.9,4371.8,9.37646253]
[1760052362772,0.00200001,4371.9,4371.8,8.94156253]
[1760052363464,0.00200001,4371.9,4371.8,9.37646253]
[1760052367936,0.00200001,4371.9,4371.8,0.001]
[1760052368140,0.79400001,4371.9,4371.8,0.001]
[1760052368370,1.48668977,4371.9,4371.8,0.001]
[1760052369859,1.70268977,4371.9,4371.8,0.001]
[1760052376567,1.48668977,4371.9,4371.8,0.001]
[1760052376781,0.79400001,4371.9,4371.8,0.001]
[1760052379094,0.79400001,4371.9,4371.8,2.28838734]
[1760052380090,0.79400001,4371.9,4371.8,0.001]
[1760052380797,0.79400001,4371.9,4371.8,2.28838734]
[1760052381698,0.79400001,4371.9,4371.8,0.001]
[1760052381872,0.11560001,4371.9,4371.8,2.28838734]
[1760052382073,0.11560001,4371.9,4371.8,0.001]
[1760052382372,0.27460001,4371.9,4371.8,2.28838734]
[1760052382975,0.27460001,4371.9,4371.8,0.001]
[1760052383202,1.58086001,4371.9,4371.8,0.001]
[1760052383371,1.79636001,4371.9,4371.8,0.001]
[1760052388096,1.58086001,4371.9,4371.8,0.001]
[1760052388781,8.02886001,4371.9,4371.8,0.001]
[1760052389710,8.24436001,4371.9,4371.8,0.001]
[1760052391509,8.24436001,4371.9,4371.8,0.231]
[1760052394693,8.02886001,4371.9,4371.8,0.231]
[1760052395478,8.24436001,4371.9,4371.8,0.231]
[1760052395678,12.45169503,4371.9,4371.8,0.231]
[1760052395883,12.94359677,4371.9,4371.8,0.231]
[1760052396102,6.49559677,4371.9,4371.8,0.231]
[1760052396311,15.32259677,4371.9,4371.8,0.231]
[1760052397885,4.20826175,4371.9,4371.8,0.231]
[1760052398214,15.32254177,4371.9,4371.8,0.231]
[1760052398594,14.83069503,4371.9,4371.8,0.231]
[1760052399317,15.32242337,4371.9,4371.8,0.231]
[1760052399520,18.5895249,4371.9,4371.8,0.231]
[1760052400419,21.85662643,4371.9,4371.8,0.231]
[1760052401513,18.5895249,4371.9,4371.8,0.231]
[1760052403595,21.85662643,4371.9,4371.8,0.231]
[1760052415607,19.47962643,4371.9,4371.8,0.231]
[1760052415811,31.37962643,4371.9,4371.8,0.231]
[1760052417846,31.38062643,4371.9,4371.8,0.231]
[1760052418253,13.02962643,4371.9,4371.8,0.231]
[1760052418444,31.38062643,4371.9,4371.8,0.231]
[1760052419412,3.3421769,4371.4,4371.3,0.001]
[1760052419624,16.03397726,4371.4,4371.3,0.001]
[1760052419967,15.70184892,4371.4,4371.3,0.001]
[1760052420339,14.27297156,4371.4,4371.3,0.001]
[1760052424139,16.19320554,4371.4,4371.3,0.001]
[1760052425572,6.47610401,4371.4,4371.3,0.001]
[1760052425871,18.57320554,4371.4,4371.3,0.001]
[1760052431942,2.92130131,4371.2,4371.0,0.001]
[1760052432183,11.78265793,4371.2,4371.0,0.001]
[1760052432487,11.94225793,4371.2,4371.0,0.001]
[1760052433477,12.55634612,4371.2,4371.0,0.001]
[1760052434181,11.94225793,4371.2,4371.0,0.001]
[1760052434350,14.19402838,4371.2,4371.0,0.001]
[1760052436986,14.19402838,4371.2,4370.9,0.001]
[1760052436987,4.84140599,4371.0,4370.9,0.001]
[1760052437148,15.04986414,4371.0,4370.9,0.001]
[1760052437483,15.20946414,4371.0,4370.9,0.001]
[1760052437787,17.44066911,4371.0,4370.9,0.001]
[1760052438149,17.53232971,4371.0,4370.9,0.001]
[1760052439058,4.84145833,4370.9,4370.8,0.001]
[1760052439276,9.32619931,4370.9,4370.8,0.001]
[1760052439587,9.48567563,4370.9,4370.8,0.001]
[1760052439885,10.14031554,4370.9,4370.8,0.001]
[1760052440850,9.52775639,4370.9,4370.8,0.001]
[1760052441278,10.14006442,4370.9,4370.8,0.001]
[1760052442081,4.84161537,4370.6,4370.5,1e-08]
[1760052442289,22.68403443,4370.6,4370.5,1e-08]
[1760052442476,22.84363443,4370.6,4370.5,1e-08]
[1760052442650,29.94363443,4370.6,4370.5,1e-08]
[1760052443289,29.33135746,4370.6,4370.5,1e-08]
[1760052443650,29.42303487,4370.6,4370.5,1e-08]
[1760052445477,29.8785607,4370.6,4370.5,1e-08]
[1760052448167,29.8805607,4370.6,4370.5,1e-08]
[1760052455892,30.49283767,4370.6,4370.5,1e-08]
[1760052458730,30.49273284,4370.6,4370.5,1e-08]
[1760052459236,29.8805607,4370.6,4370.5,1e-08]
[1760052459639,30.49292045,4370.6,4370.5,1e-08]
[1760052460098,21.66192045,4370.6,4370.5,1e-08]
[1760052460303,40.01792045,4370.6,4370.5,1e-08]
[1760052461107,39.4055607,4370.6,4370.5,1e-08]
[1760052461524,36.72005675,4370.6,4370.5,1e-08]
[1760052463240,37.54053652,4370.6,4370.5,1e-08]
[1760052465046,36.72005675,4370.6,4370.5,1e-08]
[1760052465247,37.54053652,4370.6,4370.5,1e-08]
[1760052467327,36.72005675,4370.6,4370.5,1e-08]
[1760052468544,37.53848254,4370.6,4370.5,1e-08]
[1760052469551,19.18248254,4370.6,4370.5,1e-08]
[1760052469772,37.53848254,4370.6,4370.5,1e-08]
[1760052470827,36.72005675,4370.6,4370.5,1e-08]
[1760052471134,37.53870702,4370.6,4370.5,1e-08]
[1760052472150,36.72005675,4370.6,4370.5,1e-08]
[1760052472554,37.53895838,4370.6,4370.5,1e-08]
[1760052472757,36.72005675,4370.6,4370.5,1e-08]
[1760052473336,37.53899375,4370.6,4370.5,1e-08]
[1760052474146,36.72005675,4370.6,4370.5,1e-08]
[1760052478161,18.36405675,4370.6,4370.5,1e-08]
[1760052478460,36.72005675,4370.6,4370.5,1e-08]
[1760052484055,14.05983181,4370.6,4370.5,1e-08]
[1760052484259,36.99188515,4370.6,4370.5,1e-08]
[1760052485103,33.14318604,4370.6,4370.5,1e-08]
[1760052485254,36.99188515,4370.6,4370.5,1e-08]
[1760052491323,36.17285351,4370.6,4370.5,1e-08]
[1760052491508,36.99199907,4370.6,4370.5,1e-08]
[1760052494726,37.0836645,4370.6,4370.5,1e-08]
[1760052496831,36.26451894,4370.6,4370.5,1e-08]
[1760052507459,36.26451894,4370.6,4370.5,1e-08]
[1760052510259,37.08374827,4370.6,4370.5,1e-08]
[1760052517135,18.72774827,4370.6,4370.5,1e-08]
[1760052517476,2.94097199,4370.6,4370.5,1e-08]
[1760052517777,13.05961537,4370.6,4370.5,1e-08]
[1760052517969,13.55097199,4370.6,4370.5,1e-08]
[1760052518458,14.18457199,4370.6,4370.5,1e-08]
[1760052519477,14.27623091,4370.6,4370.5,1e-08]
[1760052519635,16.3789644,4370.6,4370.5,1e-08]
[1760052523539,19.64804754,4370.6,4370.5,1e-08]
[1760052525375,19.64750487,4370.6,4370.5,1e-08]
[1760052531386,17.54477138,4370.6,4370.5,1e-08]
[1760052532170,0.74407287,4370.6,4370.5,1e-08]
[1760052532401,8.833,4370.6,4370.5,1e-08]
[1760052533107,9.4666,4370.6,4370.5,1e-08]
[1760052535508,9.6262,4370.6,4370.5,1e-08]
[1760052536301,9.4666,4370.6,4370.5,1e-08]
[1760052536509,9.4666,4370.6,4370.5,0.22902203]
[1760052536683,0.6356,4370.6,4370.5,0.22902203]
[1760052536885,7.199,4370.6,4370.5,0.70242203]
[1760052537103,7.199,4370.6,4370.5,0.47340001]
[1760052537474,7.199,4370.6,4370.5,1e-08]
[1760052539115,12.91569851,4370.6,4370.5,1e-08]
[1760052539470,14.83569851,4370.6,4370.5,1e-08]
[1760052539678,16.78606384,4370.6,4370.5,1e-08]
[1760052540988,17.27643242,4370.6,4370.5,1e-08]
[1760052542116,17.96370268,4370.6,4370.5,1e-08]
[1760052544126,11.51470268,4370.6,4370.5,1e-08]
[1760052544311,14.63388563,4370.6,4370.5,1e-08]
[1760052552303,15.12440566,4370.6,4370.5,1e-08]
[1760052553334,14.4371354,4370.6,4370.5,1e-08]
[1760052570460,5.6081354,4370.6,4370.5,1e-08]
[1760052570666,14.4371354,4370.6,4370.5,1e-08]
[1760052580486,5.6081354,4370.6,4370.5,1e-08]
[1760052580686,14.4371354,4370.6,4370.5,1e-08]
[1760052584091,14.4371354,4370.6,4370.5,0.01360001]
[1760052594511,14.87491075,4370.6,4370.5,0.01360001]
[1760052603815,15.48820107,4370.6,4370.5,0.01360001]
[1760052604037,14.87491075,4370.6,4370.5,0.01360001]
[1760052604350,15.48908803,4370.6,4370.5,1e-08]
[1760052604633,21.97491075,4370.6,4370.5,1e-08]
[1760052605289,4.84182479,4370.2,4370.1,1e-08]
[1760052605509,15.99725744,4370.2,4370.1,1e-08]
[1760052605819,16.15685744,4370.2,4370.1,1e-08]
[1760052606027,8.68904958,4369.7,4369.6,0.001]
[1760052606185,29.44928539,4369.7,4369.6,0.001]
[1760052606382,28.7941161,4369.7,4369.6,0.001]
[1760052607381,29.40652402,4369.7,4369.6,0.001]
[1760052607586,10.4401161,4369.7,4369.6,0.001]
[1760052607788,13.04215314,4369.7,4369.6,0.001]
[1760052608018,15.42315314,4369.7,4369.6,0.001]
[1760052610019,13.04215314,4369.7,4369.6,0.001]
[1760052610223,15.42315314,4369.7,4369.6,0.001]
[1760052612026,5.49540665,4369.7,4369.6,0.001]
[1760052612326,11.91488662,4369.7,4369.6,0.001]
[1760052612496,13.83488662,4369.7,4369.6,0.001]
[1760052617502,5.00488662,4369.7,4369.6,0.001]
[1760052617705,13.83488662,4369.7,4369.6,0.001]
[1760052619128,0.6336,4369.7,4369.6,0.001]
[1760052619615,9.4636,4369.7,4369.6,0.001]
[1760052620828,11.75208662,4369.7,4369.6,0.001]
[1760052621344,11.91488662,4369.7,4369.6,0.001]
[1760052627928,13.83488662,4369.7,4369.6,0.001]
[1760052628116,15.8537815,4369.7,4369.6,0.001]
[1760052628313,19.70074446,4369.7,4369.6,0.001]
[1760052628639,20.19062226,4369.7,4369.6,0.001]
[1760052629811,20.28230849,4369.7,4369.6,0.001]
[1760052630542,20.19062226,4369.7,4369.6,0.001]
[1760052635235,7.5136593,4369.7,4369.6,0.001]
[1760052635439,14.32476442,4369.7,4369.6,0.001]
[1760052636155,18.17172738,4369.7,4369.6,0.001]
[1760052640376,9.34172738,4369.7,4369.6,0.001]
[1760052640576,18.17172738,4369.7,4369.6,0.001]
[1760052645566,17.59504753,4369.7,4369.6,0.001]
[1760052645760,17.46581798,4369.7,4369.6,0.001]
[1760052645959,19.84681798,4369.7,4369.6,0.001]
[1760052648666,4.84213899,4369.6,4369.2,0.001]
[1760052648862,5.94518987,4369.6,4369.2,0.001]
[1760052649056,8.35976032,4369.6,4369.2,0.001]
[1760052649463,8.64753642,4369.6,4369.2,0.001]
[1760052649664,8.03436334,4369.6,4369.2,0.001]
[1760052649954,8.12605314,4369.6,4369.2,0.001]
[1760052653672,27.09610904,4369.6,4369.2,0.001]
[1760052653873,8.73910904,4369.6,4369.2,0.001]
[1760052654072,27.09610904,4369.6,4369.2,0.001]
[1760052655965,15.18910904,4369.6,4369.2,0.001]
[1760052656163,8.73910904,4369.6,4369.2,0.001]
[1760052656362,27.09610904,4369.6,4369.2,0.001]
[1760052657495,26.48305314,4369.6,4369.2,0.001]
[1760052659307,8.12605314,4369.6,4369.2,0.001]
[1760052659630,26.48305314,4369.6,4369.2,0.001]
[1760052659765,8.12605314,4369.6,4369.2,0.001]
[1760052660098,11.39633625,4369.6,4369.2,0.001]
[1760052660295,26.48305314,4369.6,4369.2,0.001]
[1760052660485,8.12605314,4369.6,4369.2,0.001]
[1760052660667,26.48305314,4369.6,4369.2,0.001]
[1760052660867,29.75333625,4369.6,4369.2,0.001]
[1760052661064,11.39633625,4369.6,4369.2,0.001]
[1760052661291,8.12605314,4369.6,4369.2,0.001]
[1760052661988,26.48305314,4369.6,4369.2,0.001]
[1760052662394,26.48505314,4369.6,4369.2,0.001]
[1760052663799,27.09826252,4369.6,4369.2,0.001]
[1760052665496,8.74126252,4369.6,4369.2,0.001]
[1760052665808,27.09826252,4369.6,4369.2,0.001]
[1760052670728,6.48949207,4369.6,4369.2,0.001]
[1760052671007,14.07368269,4369.6,4369.2,0.001]
[1760052671231,14.70728269,4369.6,4369.2,0.001]
[1760052671407,14.61559289,4369.6,4369.2,0.001]
[1760052672476,17.885876,4369.6,4369.2,0.001]
[1760052672676,20.75085583,4369.6,4369.2,0.001]
[1760052672878,20.84254563,4369.6,4369.2,0.001]
[1760052673401,20.22933625,4369.6,4369.2,0.001]
[1760052675035,21.04730554,4369.6,4369.2,0.001]
[1760052675339,4.84229612,4369.3,4369.2,0.001]
[1760052675657,18.32274014,4369.3,4369.2,0.001]
[1760052675857,18.48554014,4369.3,4369.2,0.001]
[1760052678009,2.92240089,4369.1,4369.0,1e-08]
[1760052678212,14.75266328,4369.1,4369.0,1e-08]
[1760052678442,14.91546328,4369.1,4369.0,1e-08]
[1760052679016,15.0071699,4369.1,4369.0,1e-08]
[1760052679343,4.84255806,4368.8,4368.7,0.001]
[1760052679512,18.72749308,4368.8,4368.7,0.001]
[1760052679709,18.89029308,4368.8,4368.7,0.001]
[1760052680214,18.98200391,4368.8,4368.7,0.001]
[1760052681843,18.16446882,4368.8,4368.7,0.001]
[1760052684715,25.26446882,4368.8,4368.7,0.001]
[1760052687844,25.38100444,4368.8,4368.7,0.001]
[1760052689160,2.92266285,4368.6,4368.5,1e-08]
[1760052689458,12.39562868,4368.6,4368.5,1e-08]
[1760052689632,19.65842868,4368.6,4368.5,1e-08]
[1760052689953,19.7501475,4368.6,4368.5,1e-08]
[1760052690671,20.04777662,4368.6,4368.5,1e-08]
[1760052690835,22.29954707,4368.6,4368.5,1e-08]
[1760052691425,18.50674215,4368.6,4368.5,1e-08]
[1760052691623,36.86774215,4368.6,4368.5,1e-08]
[1760052691825,24.95774215,4368.6,4368.5,1e-08]
[1760052692058,36.86774215,4368.6,4368.5,1e-08]
[1760052698354,37.47983018,4368.6,4368.5,1e-08]
[1760052698963,29.76774215,4368.6,4368.5,1e-08]
[1760052699169,30.37983018,4368.6,4368.5,1e-08]
[1760052701170,18.47083018,4368.6,4368.5,1e-08]
[1760052701371,30.38183018,4368.6,4368.5,1e-08]
[1760052702490,29.76974215,4368.6,4368.5,1e-08]
[1760052705603,31.1690045,4368.6,4368.5,1e-08]
[1760052706003,30.35146941,4368.6,4368.5,1e-08]
[1760052706372,31.1690045,4368.6,4368.5,1e-08]
[1760052708399,30.35146941,4368.6,4368.5,1e-08]
[1760052708903,19.08846941,4368.6,4368.5,1e-08]
[1760052709105,37.45046941,4368.6,4368.5,1e-08]
[1760052711390,35.06846941,4368.6,4368.5,1e-08]
[1760052711697,0.6336,4368.2,4368.1,1e-08]
[1760052711903,0.6336,4368.0,4367.6,0.001]
[1760052712076,6.62031037,4367.7,4367.6,0.001]
[1760052712282,16.55618179,4367.7,4367.6,0.001]
[1760052712489,18.4041227,4367.7,4367.6,0.001]
[1760052712715,20.32631153,4367.7,4367.6,0.001]
[1760052714401,21.03067074,4367.7,4367.6,0.001]
[1760052716537,12.19767074,4367.7,4367.6,0.001]
[1760052716836,30.56067074,4367.7,4367.6,0.001]
[1760052717413,30.56167074,4367.7,4367.6,0.001]
[1760052717940,29.94904549,4367.7,4367.6,0.001]
[1760052718239,37.04904549,4367.7,4367.6,0.001]
[1760052720659,18.68504549,4367.7,4367.6,0.001]
[1760052720857,37.04904549,4367.7,4367.6,0.001]
[1760052722844,18.68504549,4367.7,4367.6,0.001]
[1760052723057,27.9351227,4367.7,4367.6,0.001]
[1760052730541,28.54774795,4367.7,4367.6,0.001]
[1760052733593,28.54774795,4367.7,4367.1,0.006]
[1760052733594,0.6336,4367.1,4366.7,0.001]
[1760052733875,8.69561678,4366.8,4366.7,0.001]
[1760052734062,20.67732824,4366.8,4366.7,0.001]
[1760052734238,20.23682456,4366.8,4366.7,0.001]
[1760052734444,20.84872824,4366.8,4366.7,0.001]
[1760052735045,20.94047504,4366.8,4366.7,0.001]
[1760052735259,20.32857136,4366.8,4366.7,0.001]
[1760052735464,20.94047504,4366.8,4366.7,0.001]
[1760052736299,20.32857136,4366.8,4366.7,0.001]
[1760052738097,20.94047504,4366.8,4366.7,0.001]
[1760052738398,20.32857136,4366.8,4366.7,0.001]
[1760052738800,20.94047504,4366.8,4366.7,0.001]
[1760052739415,20.32857136,4366.8,4366.7,0.001]
[1760052739575,27.42857136,4366.8,4366.7,0.001]
[1760052742194,28.04047504,4366.8,4366.7,0.001]
[1760052744210,28.04047504,4366.8,4366.1,0.005]
[1760052744211,0.6336,4366.5,4366.1,0.005]
[1760052744371,6.77593147,4366.2,4366.1,0.005]
[1760052744570,25.17080927,4366.2,4366.1,0.005]
[1760052744808,9.35720927,4366.2,4366.1,0.005]
[1760052745112,23.8741989,4366.2,4366.1,0.005]
[1760052746905,23.3843211,4366.2,4366.1,0.005]
[1760052749278,5.0153211,4366.2,4366.1,0.005]
[1760052749472,4.303,4366.2,4366.1,0.005]
[1760052749671,10.758,4366.2,4366.1,0.005]
[1760052749890,0.1714,4366.6,4366.1,0.005]
[1760052750107,0.1144,4366.2,4366.1,0.4578]
[1760052750333,6.5594,4366.2,4366.1,0.28221787]
[1760052750539,0.1144,4366.2,4366.1,0.73501787]
[1760052750710,0.1144,4366.7,4366.4,2.29017205]
[1760052750912,4.757,4366.6,4366.5,0.93375094]
[1760052751133,4.757,4366.6,4366.5,3.20101305]
[1760052751639,4.757,4366.6,4366.5,2.74821305]
[1760052752899,4.757,4366.6,4366.5,0.45804931]
[1760052753234,4.757,4366.6,4366.5,2.74821305]
[1760052753839,4.757,4366.6,4366.5,0.45804931]
[1760052754514,4.757,4366.6,4366.5,0.91084931]
[1760052755023,4.757,4366.6,4366.5,3.20101305]
[1760052755232,4.757,4366.6,4366.5,2.74821305]
[1760052757506,4.757,4366.6,4366.5,3.20101305]
[1760052759422,0.1144,4366.7,4366.6,2.29011129]
[1760052759754,0.623,4366.7,4366.6,3.42289299]
[1760052760050,0.1144,4367.0,4366.6,2.74289693]
[1760052760256,0.1144,4367.0,4366.5,0.6336]
[1760052760257,3.1356,4366.9,4366.8,2.29000641]
[1760052760458,3.1356,4366.9,4366.8,3.30945294]
[1760052762753,7.0886,4366.9,4366.8,1.01944653]
[1760052763052,7.0886,4366.9,4366.8,0.56664653]
[1760052765126,7.0886,4366.9,4366.6,2.29110961]
[1760052765326,7.0886,4366.9,4366.7,0.4278]
[1760052765935,6.454,4366.8,4366.7,2.71785885]
[1760052766136,6.454,4366.8,4366.6,0.001]
[1760052766743,6.454,4366.8,4366.6,0.4288]
[1760052770695,6.454,4366.8,4366.6,2.71890465]
[1760052771860,6.454,4366.8,4366.7,0.4278]
[1760052773987,6.454,4366.8,4366.6,0.001]
[1760052774799,6.454,4366.8,4366.6,0.4288]
[1760052775502,6.454,4366.8,4366.7,0.4278]
[1760052777578,6.454,4366.8,4366.6,0.001]
[1760052777779,6.454,4366.8,4366.6,0.4521]
[1760052778972,6.454,4366.8,4366.7,0.4511]
[1760052780513,6.454,4366.8,4366.7,2.74115885]
[1760052781298,6.454,4366.8,4366.6,0.001]
[1760052781609,5.97385885,4366.7,4366.6,0.001]
[1760052781808,6.46402221,4366.7,4366.6,0.001]
[1760052782306,15.99402221,4366.7,4366.6,0.001]
[1760052782611,19.26708105,4366.7,4366.6,0.001]
[1760052782774,19.87755383,4366.7,4366.6,0.001]
[1760052783180,19.26708105,4366.7,4366.6,0.001]
[1760052783791,19.35883185,4366.7,4366.6,0.001]
[1760052785716,22.54177301,4366.7,4366.6,0.001]
[1760052785917,24.92377301,4366.7,4366.6,0.001]
[1760052786334,28.19683185,4366.7,4366.6,0.001]
[1760052786692,16.28483185,4366.7,4366.6,0.001]
[1760052786896,28.19783185,4366.7,4366.6,0.001]
[1760052787223,28.80830463,4366.7,4366.6,0.001]
[1760052788224,28.19783185,4366.7,4366.6,0.001]
[1760052788731,24.92477301,4366.7,4366.6,0.001]
[1760052789796,13.01177301,4366.7,4366.6,0.001]
[1760052790001,24.92477301,4366.7,4366.6,0.001]
[1760052790498,6.55577301,4366.7,4366.6,0.001]
[1760052790698,24.92477301,4366.7,4366.6,0.001]
[1760052791534,6.55577301,4366.7,4366.6,0.001]
[1760052791731,24.92477301,4366.7,4366.6,0.001]